[Event "Turkish Women-ch Arzum 2022"]
[Site "Ayvalik"]
[Date "2022.03.07"]
[Round "4.16"]
[White "Ozer, Melike Busra"]
[Black "Kipik, Feyza"]
[Result "0-1"]
[ECO "B44"]
[WhiteElo "1300"]
[BlackElo "1603"]
[Annotator "NA RC"]
[PlyCount "151"]
[EventDate "2022.03.04"]
[EventType "swiss"]
[EventCountry "TUR"]
[SourceTitle "playchess.com"]
[Source "ChessBase"]
[SourceQuality "1"]
[TimeControl "5400+30"]

1. e4 {[%emt 0:01:00]} c5 {[%emt 0:01:00]} 2. Nf3 {[%emt 0:00:00]} e6 {[%emt 0:00:30]} 3. d4 {[%emt 0:00:00]} cxd4 {[%emt 0:00:30]} 4. Nxd4 {[%emt 0:00:00]} Nc6 {[%emt 0:00:00]} 5. c4 {[%emt 0:01:00]} Nf6 {[%emt 0:00:00]} 6. Nc3 {[%emt 0:02:30]} Bb4 {[%emt 0:00:00]} 7. Nxc6 {[%emt 0:05:30]} bxc6 {[%emt 0:01:00]} 8. Bd3 {[%emt 0:00:30]} e5 {[%emt 0:00:00]} 9. O-O {[%emt 0:01:30]} O-O {[%emt 0:00:00]} 10. Bg5 {[%emt 0:00:00]} h6 {[%emt 0:00:30]} 11. Bh4 {[%emt 0:01:00]} Bc5 {[%emt 0:01:30]} 12. Kh1 {[%emt 0:06:30]} d6 {[%emt 0:00:30]} 13. a3 {[%emt 0:00:30]} a5 {[%emt 0:06:30]} 14. Ne2 {[%emt 0:04:30]} Rb8 {[%emt 0:06:30]} 15. Rb1 {[%emt 0:09:30]} g5 {[%emt 0:05:30]} 16. Bg3 {[%emt 0:00:30]} Be6 {[%emt 0:02:30]} 17. Qd2 {[%emt 0:04:30]} Nh5 {[%emt 0:02:30]} 18. b4 {[%emt 0:04:30]} axb4 {[%emt 0:05:30]} 19. axb4 {[%emt 0:00:00]} Bb6 {[%emt 0:00:00]} 20. f3 {[%emt 0:10:00]} Ra8 {[%emt 0:10:00]} 21. Ra1 {[%emt 0:05:30]} Qf6 {[%emt 0:04:30]} 22. b5 {[%emt 0:04:30]} cxb5 {[%emt 0:06:30]} 23. cxb5 {[%emt 0:00:00]} Nxg3+ {[%emt 0:07:30]} 24. Nxg3 {[%emt 0:00:00]} Bd4 {[%emt 0:01:30]} 25. Ra6 {[%emt 0:07:30]} Rxa6 {[%emt 0:06:30]} 26. bxa6 {[%emt 0:00:30]} Rb8 {[%emt 0:00:30]} 27. Qa5 {[%emt 0:12:30]} Qe7 {[%emt 0:00:30]} 28. Rc1 {[%emt 0:03:55]} Rc8 {[%emt 0:07:30]} 29. Rb1 {[%emt 0:02:46]} Qa7 {[%emt 0:03:30]} 30. Ne2 {[%emt 0:02:17]} Kg7 {[%emt 0:05:18]} 31. h3 {[%emt 0:04:25]} Bf2 {[%emt 0:03:54]} 32. Qb4 {[%emt 0:02:38]} Qc5 {[%emt 0:04:06]} 33. Qd2 {[%emt 0:03:41]} Be3 {[%emt 0:02:24]} 34. Qb2 {[%emt 0:00:19]} Bc4 {[%emt 0:01:44]} 35. Bxc4 {[%emt 0:01:48]} Qxc4 {[%emt 0:00:02]} 36. Ng3 {[%emt 0:00:06]} Bc5 {[%emt 0:02:55]} 37. Qb7 {[%emt 0:00:56]} Qa2 {[%emt 0:03:00]} 38. Nf5+ {[%emt 0:00:43]} Kh7 {[%emt 0:00:42]} 39. Rb2 {[%emt 0:01:03]} Qa1+ {[%emt 0:00:59]} 40. Rb1 {[%emt 0:00:03]} Qa2 {[%emt 0:00:30]} 41. Rd1 {[%emt 0:00:18]} Rd8 {[%emt 0:01:03]} 42. Kh2 {[%emt 0:00:45]} Qe6 {[%emt 0:01:10]} 43. Ra1 {[%emt 0:00:31]} Rd7 {[%emt 0:00:44]} 44. Qb8 {[%emt 0:00:11]} Ba7 {[%emt 0:00:23]} 45. Qf8 {[%emt 0:00:10]} Qf6 {[%emt 0:00:22]} 46. Qc8 {[%emt 0:00:21]} Qd8 {[%emt 0:00:36]} 47. Qc4 {[%emt 0:00:42]} Qb6 {[%emt 0:00:34]} 48. Rd1 {[%emt 0:00:59]} Qc5 {[%emt 0:00:32]} 49. Qe2 {[%emt 0:01:12]} Qb6 {[%emt 0:00:55]} 50. Qa2 {[%emt 0:00:27]} Qc7 {[%emt 0:00:02]} 51. Rb1 {[%emt 0:00:23]} Qc6 {[%emt 0:00:33]} 52. Ng3 {[%emt 0:01:07]} Be3 {[%emt 0:00:25]} 53. Ne2 {[%emt 0:00:00]} Ra7 {[%emt 0:00:58]} 54. Ra1 {[%emt 0:00:22]} Qb5 {[%emt 0:00:02]} 55. Nc3 {[%emt 0:00:41]} Qd3 {[%emt 0:00:43]} 56. Nd5 {[%emt 0:00:27]} Bd4 {[%emt 0:00:00]} 57. Nb4 {[%emt 0:00:36]} Qc3 {[%emt 0:00:44]} 58. Rb1 {[%emt 0:00:10]} Qc8 {[%emt 0:00:36]} 59. Qd5 {[%emt 0:00:32]} Qc5 {[%emt 0:00:33]} 60. Qb3 {[%emt 0:00:38]} Bc3 {[%emt 0:00:25]} 61. Nd3 {[%emt 0:01:38]} Qa5 {[%emt 0:00:17]} 62. Rc1 {[%emt 0:00:00]} Bd2 {[%emt 0:00:45]} 63. Rd1 {[%emt 0:00:51]} Be3 {[%emt 0:00:19]} 64. Nb4 {[%emt 0:00:00]} Bf4+ {[%emt 0:00:31]} 65. Kh1 {[%emt 0:00:26]} Qc5 {[%emt 0:00:23]} 66. Nd3 {[%emt 0:00:27]} Qc6 {[%emt 0:01:04]} 67. Nxf4 {[%emt 0:00:30]} gxf4 {[%emt 0:00:30]} 68. Ra1 {[%emt 0:00:00]} Kg6 {[%emt 0:00:00]} 69. Qa3 {[%emt 0:00:04]} f5 {[%emt 0:00:16]} 70. exf5+ {[%emt 0:00:41]} Kxf5 {[%emt 0:00:01]} 71. Qd3+ {[%emt 0:00:30]} Kf6 {[%emt 0:00:11]} 72. h4 {[%emt 0:00:05]} Qc5 {[%emt 0:00:47]} 73. h5 {[%emt 0:00:52]} Rg7 {[%emt 0:00:22]} 74. Rd1 {[%emt 0:01:34]} Ke6 {[%emt 0:00:29]} 75. Qb3+ {[%emt 0:00:29]} d5 {[%emt 0:00:42]} 76. Ra1 {[%emt 0:00:49]} 0-1

[Event "Turkish Women-ch Arzum 2022"]
[Site "Ayvalik"]
[Date "2022.03.07"]
[Round "4.17"]
[White "Alagoz, Zumra Meryem"]
[Black "Engin, Cagla"]
[Result "1/2-1/2"]
[ECO "B09"]
[WhiteElo "1573"]
[BlackElo "1436"]
[Annotator "NA RC"]
[PlyCount "100"]
[EventDate "2022.03.04"]
[EventType "swiss"]
[EventCountry "TUR"]
[SourceTitle "playchess.com"]
[Source "ChessBase"]
[SourceQuality "1"]
[TimeControl "5400+30"]

1. e4 {[%emt 0:01:00]} d6 {[%emt 0:01:00]} 2. d4 {[%emt 0:00:30]} g6 {[%emt 0:00:30]} 3. Nc3 {[%emt 0:00:00]} Bg7 {[%emt 0:00:00]} 4. f4 {[%emt 0:00:00]} Nf6 {[%emt 0:01:00]} 5. Nf3 {[%emt 0:00:30]} c5 {[%emt 0:02:30]} 6. Bb5+ {[%emt 0:00:30]} Bd7 {[%emt 0:02:30]} 7. e5 {[%emt 0:00:30]} Ng4 {[%emt 0:04:30]} 8. e6 {[%emt 0:00:30]} Bxb5 {[%emt 0:06:30]} 9. exf7+ {[%emt 0:00:00]} Kf8 {[%emt 0:00:30]} 10. Nxb5 {[%emt 0:07:00]} Qa5+ {[%emt 0:03:30]} 11. Nc3 {[%emt 0:00:00]} Nc6 {[%emt 0:01:30]} 12. Bd2 {[%emt 0:14:00]} cxd4 {[%emt 0:03:30]} 13. Ne4 {[%emt 0:07:30]} Qd5 {[%emt 0:03:30]} 14. Nfg5 {[%emt 0:01:30]} Nf6 {[%emt 0:03:30]} 15. Qf3 {[%emt 0:02:30]} Nxe4 {[%emt 0:02:30]} 16. Nxe4 {[%emt 0:00:00]} Qe6 {[%emt 0:03:30]} 17. O-O {[%emt 0:02:00]} h6 {[%emt 0:01:30]} 18. Rae1 {[%emt 0:08:30]} Qxf7 {[%emt 0:02:30]} 19. Qg4 {[%emt 0:07:30]} Kg8 {[%emt 0:06:30]} 20. Qd7 {[%emt 0:05:30]} Rb8 {[%emt 0:02:30]} 21. b4 {[%emt 0:02:30]} a6 {[%emt 0:02:30]} 22. a4 {[%emt 0:02:30]} Qd5 {[%emt 0:04:30]} 23. Rf3 {[%emt 0:13:30]} Kh7 {[%emt 0:02:30]} 24. Rh3 {[%emt 0:04:52]} Rhe8 {[%emt 0:08:30]} 25. b5 {[%emt 0:03:15]} axb5 {[%emt 0:02:30]} 26. axb5 {[%emt 0:01:15]} Na7 {[%emt 0:07:30]} 27. Ng5+ {[%emt 0:06:31]} Kg8 {[%emt 0:00:30]} 28. Nf3 {[%emt 0:01:37]} Rbd8 {[%emt 0:05:17]} 29. Qg4 {[%emt 0:00:41]} Qf5 {[%emt 0:00:44]} 30. Qh4 {[%emt 0:01:53]} e6 {[%emt 0:01:38]} 31. g4 {[%emt 0:00:51]} Qxc2 {[%emt 0:00:51]} 32. Rxe6 {[%emt 0:00:35]} Nxb5 {[%emt 0:02:44]} 33. f5 {[%emt 0:01:16]} g5 {[%emt 0:03:59]} 34. Bxg5 {[%emt 0:01:36]} Rxe6 {[%emt 0:02:06]} 35. fxe6 {[%emt 0:00:46]} hxg5 {[%emt 0:00:47]} 36. Qxg5 {[%emt 0:00:27]} Re8 {[%emt 0:02:00]} 37. Qxb5 {[%emt 0:01:23]} Rxe6 {[%emt 0:00:54]} 38. Qd5 {[%emt 0:01:47]} Qd1+ {[%emt 0:00:03]} 39. Kf2 {[%emt 0:00:35]} Qe2+ {[%emt 0:00:30]} 40. Kg3 {[%emt 0:00:00]} Kf8 {[%emt 0:00:05]} 41. Qf5+ {[%emt 0:00:34]} Ke8 {[%emt 0:01:03]} 42. Qh5+ {[%emt 0:00:49]} Kd7 {[%emt 0:00:28]} 43. Qf7+ {[%emt 0:00:23]} Re7 {[%emt 0:00:33]} 44. Qf5+ {[%emt 0:00:29]} Kc7 {[%emt 0:00:14]} 45. Qa5+ {[%emt 0:00:42]} b6 {[%emt 0:00:34]} 46. Qa7+ {[%emt 0:00:35]} Kc6 {[%emt 0:00:13]} 47. Qa8+ {[%emt 0:00:45]} Kc7 {[%emt 0:00:27]} 48. Qa7+ {[%emt 0:01:41]} Kc6 {[%emt 0:00:07]} 49. Qa4+ {[%emt 0:00:32]} Kc7 {[%emt 0:00:15]} 50. Qa7+ {[%emt 0:00:24]} Kc6 {[%emt 0:00:06]} 1/2-1/2

[Event "Turkish Women-ch Arzum 2022"]
[Site "Ayvalik"]
[Date "2022.03.07"]
[Round "4.22"]
[White "Kucuk, Aybike"]
[Black "Engel, Ecrin Tuana"]
[Result "1-0"]
[ECO "A16"]
[WhiteElo "1439"]
[BlackElo "1250"]
[Annotator "NA RC"]
[PlyCount "71"]
[EventDate "2022.03.04"]
[EventType "swiss"]
[EventCountry "TUR"]
[SourceTitle "playchess.com"]
[Source "ChessBase"]
[SourceQuality "1"]
[TimeControl "5400+30"]

1. c4 {[%emt 0:01:00]} Nf6 {[%emt 0:01:00]} 2. Nc3 {[%emt 0:00:00]} g6 {[%emt 0:00:30]} 3. g3 {[%emt 0:00:00]} Bg7 {[%emt 0:00:00]} 4. Bg2 {[%emt 0:00:30]} c6 {[%emt 0:00:00]} 5. e3 {[%emt 0:00:30]} O-O {[%emt 0:00:30]} 6. Nge2 {[%emt 0:00:00]} d6 {[%emt 0:00:30]} 7. O-O {[%emt 0:00:00]} Nbd7 {[%emt 0:04:30]} 8. d4 {[%emt 0:02:30]} Qc7 {[%emt 0:00:30]} 9. b3 {[%emt 0:01:30]} Rb8 {[%emt 0:02:30]} 10. Bb2 {[%emt 0:04:30]} b5 {[%emt 0:06:30]} 11. cxb5 {[%emt 0:04:30]} cxb5 {[%emt 0:00:00]} 12. Rc1 {[%emt 0:01:30]} Qb6 {[%emt 0:00:00]} 13. Nf4 {[%emt 0:02:30]} e6 {[%emt 0:04:30]} 14. e4 {[%emt 0:08:30]} a6 {[%emt 0:15:30]} 15. Rc2 {[%emt 0:08:30]} Bb7 {[%emt 0:04:30]} 16. Qa1 {[%emt 0:04:30]} Rfc8 {[%emt 0:10:30]} 17. Rfc1 {[%emt 0:04:30]} Bh6 {[%emt 0:14:30]} 18. b4 {[%emt 0:24:30]} Qa7 {[%emt 0:18:25]} 19. Re1 {[%emt 0:06:30]} e5 {[%emt 0:09:03]} 20. dxe5 {[%emt 0:05:05]} dxe5 {[%emt 0:00:04]} 21. Nfd5 {[%emt 0:06:10]} Nxd5 {[%emt 0:02:38]} 22. exd5 {[%emt 0:00:02]} Qa8 {[%emt 0:00:04]} 23. Rce2 {[%emt 0:04:17]} Nb6 {[%emt 0:01:43]} 24. Ne4 {[%emt 0:02:07]} Bg7 {[%emt 0:01:41]} 25. Bxe5 {[%emt 0:01:03]} Bxe5 {[%emt 0:00:30]} 26. Qxe5 {[%emt 0:00:00]} Nxd5 {[%emt 0:00:58]} 27. Nc5 {[%emt 0:04:24]} Nxb4 {[%emt 0:01:26]} 28. Bxb7 {[%emt 0:00:59]} Rxb7 {[%emt 0:00:06]} 29. Nxb7 {[%emt 0:00:37]} Nd3 {[%emt 0:00:36]} 30. Qe7 {[%emt 0:01:05]} Nxe1 {[%emt 0:00:46]} 31. Rxe1 {[%emt 0:00:01]} Rc2 {[%emt 0:00:40]} 32. Qd7 {[%emt 0:00:37]} Qa7 {[%emt 0:00:30]} 33. Qe8+ {[%emt 0:02:52]} Kg7 {[%emt 0:00:30]} 34. Qe5+ {[%emt 0:00:00]} Kh6 {[%emt 0:01:24]} 35. Qf4+ {[%emt 0:00:17]} Kg7 {[%emt 0:00:00]} 36. Re7 {[%emt 0:00:00]} 1-0

[Event "Turkish Women-ch Arzum 2022"]
[Site "Ayvalik"]
[Date "2022.03.07"]
[Round "4.23"]
[White "Bursali, Ela"]
[Black "Alev, Gonulden Seda"]
[Result "0-1"]
[ECO "B22"]
[WhiteElo "1353"]
[BlackElo "1561"]
[Annotator "NA RC"]
[PlyCount "60"]
[EventDate "2022.03.04"]
[EventType "swiss"]
[EventCountry "TUR"]
[SourceTitle "playchess.com"]
[Source "ChessBase"]
[SourceQuality "1"]
[TimeControl "5400+30"]

1. e4 {[%emt 0:01:00]} c5 {[%emt 0:05:00]} 2. c3 {[%emt 0:00:00]} Nf6 {[%emt 0:00:30]} 3. e5 {[%emt 0:00:00]} Nd5 {[%emt 0:00:00]} 4. d4 {[%emt 0:00:30]} cxd4 {[%emt 0:02:00]} 5. cxd4 {[%emt 0:01:30]} e6 {[%emt 0:03:30]} 6. Nf3 {[%emt 0:02:30]} Qc7 {[%emt 0:03:30]} 7. Bd2 {[%emt 0:07:30]} Nc6 {[%emt 0:09:30]} 8. Bc4 {[%emt 0:02:30]} Nxd4 {[%emt 0:09:30]} 9. Nxd4 {[%emt 0:08:30]} Qxc4 {[%emt 0:03:30]} 10. Nf3 {[%emt 0:09:30]} Nb4 {[%emt 0:07:30]} 11. Bxb4 {[%emt 0:01:30]} Bxb4+ {[%emt 0:00:30]} 12. Nbd2 {[%emt 0:00:30]} b6 {[%emt 0:14:30]} 13. a3 {[%emt 0:01:30]} Qe4+ {[%emt 0:08:30]} 14. Kf1 {[%emt 0:05:30]} Qd3+ {[%emt 0:09:30]} 15. Kg1 {[%emt 0:02:30]} Be7 {[%emt 0:01:58]} 16. Rc1 {[%emt 0:09:30]} Ba6 {[%emt 0:03:19]} 17. Ne1 {[%emt 0:07:30]} Qd4 {[%emt 0:01:46]} 18. Qf3 {[%emt 0:06:30]} O-O {[%emt 0:00:18]} 19. Qc3 {[%emt 0:06:30]} Bc5 {[%emt 0:03:13]} 20. Qxd4 {[%emt 0:01:30]} Bxd4 {[%emt 0:00:02]} 21. Ndf3 {[%emt 0:02:30]} Bxb2 {[%emt 0:01:06]} 22. Rc7 {[%emt 0:00:30]} Bxa3 {[%emt 0:01:49]} 23. Rxd7 {[%emt 0:00:30]} Rfd8 {[%emt 0:00:01]} 24. Rxd8+ {[%emt 0:00:30]} Rxd8 {[%emt 0:00:01]} 25. h3 {[%emt 0:00:30]} Rd1 {[%emt 0:02:26]} 26. Kh2 {[%emt 0:00:00]} Bb2 {[%emt 0:00:56]} 27. Nc2 {[%emt 0:00:00]} Rxh1+ {[%emt 0:01:00]} 28. Kxh1 {[%emt 0:00:30]} Be2 {[%emt 0:00:30]} 29. Ncd4 {[%emt 0:00:30]} Bxf3 {[%emt 0:00:30]} 30. Nxf3 {[%emt 0:00:30]} a5 {[%emt 0:00:30]} 0-1

[Event "Turkish Women-ch Arzum 2022"]
[Site "Ayvalik"]
[Date "2022.03.07"]
[Round "4.24"]
[White "Kalyoncu, Beren"]
[Black "Susin, Derya Defne"]
[Result "0-1"]
[ECO "D02"]
[WhiteElo "1228"]
[BlackElo "1285"]
[Annotator "NA RC"]
[PlyCount "143"]
[EventDate "2022.03.04"]
[EventType "swiss"]
[EventCountry "TUR"]
[SourceTitle "playchess.com"]
[Source "ChessBase"]
[SourceQuality "1"]
[TimeControl "5400+30"]

1. d4 {[%emt 0:01:00]} Nf6 {[%emt 0:01:00]} 2. Bf4 {[%emt 0:00:30]} d5 {[%emt 0:00:30]} 3. Nf3 {[%emt 0:00:30]} e6 {[%emt 0:01:30]} 4. e3 {[%emt 0:00:30]} Bd6 {[%emt 0:00:30]} 5. Bg3 {[%emt 0:00:30]} O-O {[%emt 0:01:30]} 6. Bd3 {[%emt 0:00:30]} c5 {[%emt 0:02:30]} 7. c3 {[%emt 0:00:00]} Qc7 {[%emt 0:00:30]} 8. Nbd2 {[%emt 0:01:00]} Nbd7 {[%emt 0:03:30]} 9. Bxd6 {[%emt 0:04:30]} Qxd6 {[%emt 0:00:00]} 10. O-O {[%emt 0:00:30]} e5 {[%emt 0:04:00]} 11. dxe5 {[%emt 0:00:00]} Nxe5 {[%emt 0:01:30]} 12. Nxe5 {[%emt 0:00:00]} Qxe5 {[%emt 0:00:00]} 13. Nf3 {[%emt 0:00:30]} Qc7 {[%emt 0:03:00]} 14. h3 {[%emt 0:02:30]} b6 {[%emt 0:04:30]} 15. Qc2 {[%emt 0:06:30]} Bb7 {[%emt 0:03:30]} 16. Rfe1 {[%emt 0:02:30]} Rad8 {[%emt 0:00:00]} 17. Rad1 {[%emt 0:02:30]} Rfe8 {[%emt 0:05:00]} 18. Nd2 {[%emt 0:03:30]} g6 {[%emt 0:11:30]} 19. Be2 {[%emt 0:03:30]} Ne4 {[%emt 0:05:30]} 20. Nxe4 {[%emt 0:01:30]} dxe4 {[%emt 0:02:30]} 21. Bc4 {[%emt 0:01:30]} Re7 {[%emt 0:05:30]} 22. Rxd8+ {[%emt 0:02:30]} Qxd8 {[%emt 0:00:00]} 23. Rd1 {[%emt 0:00:00]} Rd7 {[%emt 0:01:00]} 24. Rxd7 {[%emt 0:01:00]} Qxd7 {[%emt 0:00:30]} 25. Bb3 {[%emt 0:03:30]} Kg7 {[%emt 0:03:30]} 26. Qd1 {[%emt 0:00:30]} Qxd1+ {[%emt 0:05:30]} 27. Bxd1 {[%emt 0:00:30]} Ba6 {[%emt 0:00:30]} 28. Kh2 {[%emt 0:00:30]} Kf6 {[%emt 0:00:30]} 29. Kg3 {[%emt 0:00:30]} Ke5 {[%emt 0:02:30]} 30. Kg4 {[%emt 0:01:30]} h6 {[%emt 0:03:30]} 31. h4 {[%emt 0:02:30]} Bf1 {[%emt 0:01:30]} 32. Kh3 {[%emt 0:03:30]} Kd5 {[%emt 0:04:30]} 33. Bb3+ {[%emt 0:02:30]} Bc4 {[%emt 0:00:30]} 34. Kg3 {[%emt 0:01:30]} Bxb3 {[%emt 0:03:30]} 35. axb3 {[%emt 0:00:30]} b5 {[%emt 0:01:30]} 36. Kf4 {[%emt 0:01:30]} a5 {[%emt 0:01:30]} 37. g4 {[%emt 0:00:30]} c4 {[%emt 0:03:50]} 38. b4 {[%emt 0:04:30]} axb4 {[%emt 0:02:30]} 39. cxb4 {[%emt 0:00:00]} c3 {[%emt 0:04:00]} 40. bxc3 {[%emt 0:00:00]} Kc4 {[%emt 0:00:00]} 41. Kxe4 {[%emt 0:01:30]} Kxc3 {[%emt 0:01:10]} 42. g5 {[%emt 0:01:30]} hxg5 {[%emt 0:01:51]} 43. hxg5 {[%emt 0:00:30]} Kxb4 {[%emt 0:00:12]} 44. Kd3 {[%emt 0:02:30]} Kc5 {[%emt 0:04:46]} 45. f4 {[%emt 0:01:30]} b4 {[%emt 0:01:23]} 46. e4 {[%emt 0:00:30]} b3 {[%emt 0:00:35]} 47. f5 {[%emt 0:00:30]} b2 {[%emt 0:00:47]} 48. Kc2 {[%emt 0:00:30]} Kd4 {[%emt 0:00:25]} 49. fxg6 {[%emt 0:00:30]} fxg6 {[%emt 0:00:30]} 50. Kxb2 {[%emt 0:00:30]} Kxe4 {[%emt 0:00:30]} 51. Kc2 {[%emt 0:00:00]} Kf4 {[%emt 0:00:00]} 52. Kd2 {[%emt 0:00:00]} Kxg5 {[%emt 0:00:00]} 53. Ke3 {[%emt 0:00:00]} Kg4 {[%emt 0:00:00]} 54. Ke2 {[%emt 0:00:00]} Kg3 {[%emt 0:01:53]} 55. Ke1 {[%emt 0:00:00]} g5 {[%emt 0:01:15]} 56. Kf1 {[%emt 0:00:00]} Kh2 {[%emt 0:00:00]} 57. Kf2 {[%emt 0:00:30]} g4 {[%emt 0:00:25]} 58. Ke3 {[%emt 0:00:30]} g3 {[%emt 0:00:00]} 59. Ke4 {[%emt 0:00:00]} g2 {[%emt 0:00:11]} 60. Kd4 {[%emt 0:00:00]} g1=Q+ {[%emt 0:00:30]} 61. Ke4 {[%emt 0:00:00]} Qf2 {[%emt 0:00:00]} 62. Ke5 {[%emt 0:00:00]} Kg3 {[%emt 0:00:21]} 63. Ke6 {[%emt 0:00:00]} Kg4 {[%emt 0:00:00]} 64. Ke5 {[%emt 0:00:00]} Qf7 {[%emt 0:00:00]} 65. Ke4 {[%emt 0:00:30]} Qe6+ {[%emt 0:00:13]} 66. Kd4 {[%emt 0:00:30]} Kf4 {[%emt 0:00:00]} 67. Kc5 {[%emt 0:00:00]} Ke5 {[%emt 0:00:08]} 68. Kb4 {[%emt 0:00:00]} Qc6 {[%emt 0:00:30]} 69. Kb3 {[%emt 0:00:30]} Kd4 {[%emt 0:00:30]} 70. Kb4 {[%emt 0:00:00]} Qb6+ {[%emt 0:00:00]} 71. Ka3 {[%emt 0:00:00]} Kc3 {[%emt 0:00:00]} 72. Ka2 {[%emt 0:00:30]} 0-1

[Event "Turkish Women-ch Arzum 2022"]
[Site "Ayvalik"]
[Date "2022.03.07"]
[Round "4.25"]
[White "Gedik, Eylul Ceren"]
[Black "Topal, Berfin"]
[Result "1-0"]
[ECO "B01"]
[WhiteElo "1282"]
[BlackElo "1322"]
[Annotator "NA RC"]
[PlyCount "101"]
[EventDate "2022.03.04"]
[EventType "swiss"]
[EventCountry "TUR"]
[SourceTitle "playchess.com"]
[Source "ChessBase"]
[SourceQuality "1"]
[TimeControl "5400+30"]

1. e4 {[%emt 0:01:00]} d5 {[%emt 0:03:00]} 2. exd5 {[%emt 0:00:30]} Qxd5 {[%emt 0:00:30]} 3. Nc3 {[%emt 0:00:30]} Qd8 {[%emt 0:00:00]} 4. d4 {[%emt 0:00:00]} Nf6 {[%emt 0:00:00]} 5. Nf3 {[%emt 0:00:00]} Bg4 {[%emt 0:00:30]} 6. h3 {[%emt 0:00:00]} Bxf3 {[%emt 0:00:30]} 7. Qxf3 {[%emt 0:00:00]} c6 {[%emt 0:00:00]} 8. Be3 {[%emt 0:00:30]} e6 {[%emt 0:00:00]} 9. O-O-O {[%emt 0:00:00]} Nbd7 {[%emt 0:00:30]} 10. g4 {[%emt 0:00:00]} Nb6 {[%emt 0:00:30]} 11. g5 {[%emt 0:02:30]} Nfd5 {[%emt 0:00:00]} 12. Nxd5 {[%emt 0:00:30]} Qxd5 {[%emt 0:00:00]} 13. Qxd5 {[%emt 0:02:30]} Nxd5 {[%emt 0:00:30]} 14. c4 {[%emt 0:01:30]} Nb4 {[%emt 0:01:30]} 15. a3 {[%emt 0:01:30]} Na6 {[%emt 0:00:30]} 16. b4 {[%emt 0:01:30]} Nc7 {[%emt 0:00:00]} 17. Kb2 {[%emt 0:03:30]} O-O-O {[%emt 0:05:00]} 18. Bg2 {[%emt 0:03:30]} Be7 {[%emt 0:00:30]} 19. Kb3 {[%emt 0:07:30]} Rd7 20. Rd2 {[%emt 0:00:30]} Rhd8 {[%emt 0:07:00]} 21. Rhd1 {[%emt 0:00:30]} a6 {[%emt 0:00:30]} 22. f4 {[%emt 0:04:30]} Ne8 {[%emt 0:01:30]} 23. d5 {[%emt 0:30:30]} exd5 {[%emt 0:02:30]} 24. cxd5 {[%emt 0:00:30]} cxd5 {[%emt 0:01:30]} 25. Bb6 {[%emt 0:06:30]} Nc7 {[%emt 0:00:30]} 26. h4 {[%emt 0:02:30]} Re8 {[%emt 0:06:30]} 27. Bh3 {[%emt 0:07:30]} Ne6 {[%emt 0:00:30]} 28. f5 {[%emt 0:00:30]} Nf4 {[%emt 0:01:30]} 29. Bg4 {[%emt 0:00:30]} f6 {[%emt 0:02:30]} 30. Rf1 {[%emt 0:03:30]} Bd6 {[%emt 0:01:30]} 31. Bd4 {[%emt 0:09:08]} Rf8 {[%emt 0:03:30]} 32. Be3 {[%emt 0:00:58]} Re8 {[%emt 0:09:30]} 33. Bxf4 {[%emt 0:00:40]} Bxf4 {[%emt 0:00:30]} 34. Rxf4 {[%emt 0:00:02]} Re3+ {[%emt 0:01:30]} 35. Kb2 {[%emt 0:00:49]} Kc7 {[%emt 0:00:30]} 36. Rfd4 {[%emt 0:02:17]} Kc6 {[%emt 0:01:30]} 37. Re2 {[%emt 0:01:20]} Re5 {[%emt 0:00:30]} 38. Rxe5 {[%emt 0:01:17]} fxe5 {[%emt 0:00:30]} 39. Rd3 {[%emt 0:00:08]} Rf7 {[%emt 0:01:30]} 40. h5 {[%emt 0:01:24]} d4 {[%emt 0:01:30]} 41. Bf3+ {[%emt 0:00:51]} Kb5 {[%emt 0:00:30]} 42. Be4 {[%emt 0:00:00]} Kc4 {[%emt 0:00:00]} 43. Rd2 {[%emt 0:00:27]} Rd7 {[%emt 0:01:00]} 44. Rc2+ {[%emt 0:00:30]} Kb5 {[%emt 0:00:30]} 45. Rc5+ {[%emt 0:00:14]} Kb6 {[%emt 0:00:00]} 46. Rxe5 {[%emt 0:00:58]} d3 {[%emt 0:00:00]} 47. Rd5 {[%emt 0:00:00]} Rxd5 {[%emt 0:00:30]} 48. Bxd5 {[%emt 0:00:00]} Kc7 {[%emt 0:00:30]} 49. Kc3 {[%emt 0:00:13]} Kd6 {[%emt 0:00:30]} 50. Bxb7 {[%emt 0:00:30]} Ke5 {[%emt 0:00:00]} 51. Bxa6 {[%emt 0:00:00]} 1-0

[Event "Turkish Women-ch Arzum 2022"]
[Site "Ayvalik"]
[Date "2022.03.07"]
[Round "4.27"]
[White "Sahin, Cagla Yudum"]
[Black "Senkal, Defne"]
[Result "1-0"]
[ECO "B23"]
[WhiteElo "1162"]
[BlackElo "1247"]
[Annotator "NA RC"]
[PlyCount "111"]
[EventDate "2022.03.04"]
[EventType "swiss"]
[EventCountry "TUR"]
[SourceTitle "playchess.com"]
[Source "ChessBase"]
[SourceQuality "1"]
[TimeControl "5400+30"]

1. e4 {[%emt 0:01:00]} c5 {[%emt 0:01:00]} 2. Nc3 {[%emt 0:00:00]} e6 {[%emt 0:01:30]} 3. f4 {[%emt 0:00:00]} g6 {[%emt 0:00:30]} 4. Nf3 {[%emt 0:00:30]} Bg7 {[%emt 0:01:30]} 5. Bc4 {[%emt 0:02:30]} Ne7 {[%emt 0:03:30]} 6. d3 {[%emt 0:02:30]} a6 {[%emt 0:02:30]} 7. e5 {[%emt 0:04:30]} b5 {[%emt 0:02:30]} 8. Bb3 {[%emt 0:00:30]} Bb7 {[%emt 0:08:30]} 9. a4 {[%emt 0:03:30]} Qb6 {[%emt 0:13:30]} 10. Be3 {[%emt 0:13:30]} Nf5 {[%emt 0:05:30]} 11. Bf2 {[%emt 0:00:30]} d5 {[%emt 0:02:30]} 12. exd6 {[%emt 0:08:30]} Nxd6 {[%emt 0:01:30]} 13. d4 {[%emt 0:05:30]} c4 {[%emt 0:10:30]} 14. a5 {[%emt 0:06:30]} Qc7 {[%emt 0:01:30]} 15. Ba2 {[%emt 0:01:30]} O-O {[%emt 0:00:30]} 16. O-O {[%emt 0:07:30]} Nf5 {[%emt 0:01:30]} 17. Nh4 {[%emt 0:14:30]} Nxh4 {[%emt 0:13:30]} 18. Bxh4 {[%emt 0:00:30]} Qd6 {[%emt 0:01:30]} 19. Ne2 {[%emt 0:00:30]} Nc6 {[%emt 0:01:30]} 20. c3 {[%emt 0:00:30]} Ne7 {[%emt 0:00:30]} 21. Bb1 {[%emt 0:01:30]} Qd5 {[%emt 0:04:30]} 22. Rf2 {[%emt 0:00:30]} Nf5 {[%emt 0:00:30]} 23. Bxf5 {[%emt 0:00:30]} Qxf5 {[%emt 0:01:30]} 24. Qd2 {[%emt 0:01:30]} Qh5 {[%emt 0:00:32]} 25. Be7 {[%emt 0:04:35]} Rfe8 {[%emt 0:00:28]} 26. Bc5 {[%emt 0:00:44]} Rad8 {[%emt 0:00:30]} 27. Qe3 {[%emt 0:00:50]} Qf5 {[%emt 0:02:45]} 28. Ng3 {[%emt 0:00:51]} Qd5 {[%emt 0:00:56]} 29. Re1 {[%emt 0:00:48]} Qd7 {[%emt 0:01:34]} 30. Ne4 {[%emt 0:00:33]} Bxe4 {[%emt 0:00:27]} 31. Qxe4 {[%emt 0:00:07]} Qd5 {[%emt 0:00:26]} 32. Qxd5 {[%emt 0:00:17]} exd5 {[%emt 0:01:47]} 33. Rfe2 {[%emt 0:00:15]} Rxe2 {[%emt 0:01:18]} 34. Rxe2 {[%emt 0:00:30]} Bh6 {[%emt 0:00:00]} 35. g3 {[%emt 0:00:00]} Bf8 {[%emt 0:02:56]} 36. Bb6 {[%emt 0:00:59]} Rc8 {[%emt 0:08:38]} 37. Re5 {[%emt 0:00:14]} b4 {[%emt 0:01:15]} 38. Rxd5 {[%emt 0:00:23]} b3 {[%emt 0:00:24]} 39. Bc5 {[%emt 0:01:48]} Bxc5 {[%emt 0:01:40]} 40. Rxc5 {[%emt 0:00:51]} Rxc5 {[%emt 0:01:13]} 41. dxc5 {[%emt 0:00:30]} Kf8 {[%emt 0:00:00]} 42. Kf2 {[%emt 0:00:11]} Ke7 {[%emt 0:00:22]} 43. Ke3 {[%emt 0:00:00]} Kd7 {[%emt 0:00:56]} 44. Kd4 {[%emt 0:00:00]} Kc7 {[%emt 0:00:51]} 45. Kxc4 {[%emt 0:00:04]} Kc6 {[%emt 0:00:03]} 46. h4 {[%emt 0:00:30]} h6 {[%emt 0:00:53]} 47. g4 {[%emt 0:00:30]} f6 {[%emt 0:00:28]} 48. g5 {[%emt 0:00:30]} fxg5 {[%emt 0:00:09]} 49. fxg5 {[%emt 0:00:30]} hxg5 {[%emt 0:00:30]} 50. hxg5 {[%emt 0:00:00]} Kd7 {[%emt 0:00:24]} 51. Kd5 {[%emt 0:00:00]} Kc7 {[%emt 0:00:00]} 52. c6 {[%emt 0:00:30]} Kd8 {[%emt 0:00:13]} 53. Kd6 {[%emt 0:00:30]} Kc8 {[%emt 0:00:30]} 54. c7 {[%emt 0:00:30]} Kb7 {[%emt 0:00:30]} 55. Kd7 {[%emt 0:00:30]} Ka7 {[%emt 0:00:30]} 56. Kd8 {[%emt 0:00:00]} 1-0